[Event "XII Cracow ICC-B 2024"]
[Site "Krakow"]
[Date "2024.06.27"]
[Round "7.1"]
[White "Gbyl, Andrzej"]
[Black "Wnek, Filip"]
[Result "1-0"]
[ECO "D11"]
[WhiteElo "2152"]
[BlackElo "2019"]
[Annotator "RC"]
[PlyCount "69"]
[EventDate "2024.06.20"]
[EventType "swiss"]
[EventCountry "POL"]
[SourceTitle "playchess.com"]
[Source "ChessBase"]
[SourceQuality "1"]
[TimeControl "40/5400+30:1800+30"]

1. d4 {[%emt 0:00:05]} d5 {[%emt 0:00:05]} 2. c4 {[%emt 0:00:17]} c6 {[%emt 0:00:12]} 3. Nf3 {[%emt 0:00:22]} e6 {[%emt 0:00:06]} 4. Qc2 {[%emt 0:00:36]} Nf6 {[%emt 0:00:34]} 5. Bf4 {[%emt 0:03:49]} dxc4 {[%emt 0:01:11]} 6. Qxc4 {[%emt 0:00:59]} b5 {[%emt 0:00:09]} 7. Qc2 {[%emt 0:00:21]} Bb7 {[%emt 0:01:09]} 8. e4 {[%emt 0:04:59]} Nbd7 {[%emt 0:01:39]} 9. Nbd2 {[%emt 0:03:34]} Qa5 {[%emt 0:01:14]} 10. Bd3 {[%emt 0:02:42]} c5 {[%emt 0:11:40]} 11. O-O {[%emt 0:01:48]} c4 {[%emt 0:01:50]} 12. Be2 {[%emt 0:01:00]} a6 {[%emt 0:02:23]} 13. a4 {[%emt 0:02:05]} Qb6 {[%emt 0:13:29]} 14. axb5 {[%emt 0:01:43]} axb5 {[%emt 0:00:11]} 15. Rxa8+ {[%emt 0:00:09]} Bxa8 {[%emt 0:00:05]} 16. Ra1 {[%emt 0:00:07]} Bc6 {[%emt 0:00:52]} 17. b3 {[%emt 0:24:33]} cxb3 {[%emt 0:03:42]} 18. Qxb3 {[%emt 0:00:55]} Be7 {[%emt 0:01:49]} 19. Be3 {[%emt 0:14:58]} Qb7 {[%emt 0:18:14]} 20. d5 {[%emt 0:02:33]} exd5 {[%emt 0:02:15]} 21. Nd4 {[%emt 0:19:36]} Nc5 {[%emt 0:32:15]} 22. Qc2 {[%emt 0:03:10]} Bd7 {[%emt 0:00:28]} 23. Nf5 {[%emt 0:04:51]} Ncxe4 {[%emt 0:05:32]} 24. Nxe7 {[%emt 0:00:25]} Nxd2 {[%emt 0:00:53]} 25. Bxd2 {[%emt 0:03:52]} Kxe7 {[%emt 0:00:17]} 26. Qc5+ {[%emt 0:00:05]} Ke6 {[%emt 0:00:42]} 27. Bb4 {[%emt 0:01:28]} Qc6 {[%emt 0:00:30]} 28. Qe7+ {[%emt 0:00:15]} Kf5 {[%emt 0:00:07]} 29. Bd3+ {[%emt 0:00:15]} Ne4 {[%emt 0:00:49]} 30. Qxf7+ {[%emt 0:00:53]} Ke5 {[%emt 0:00:34]} 31. Bxe4 {[%emt 0:01:41]} Kxe4 {[%emt 0:00:30]} 32. Qf3+ {[%emt 0:00:44]} Ke5 {[%emt 0:00:22]} 33. Re1+ {[%emt 0:00:12]} Kd4 {[%emt 0:00:05]} 34. Qe3+ {[%emt 0:00:14]} Kc4 {[%emt 0:00:07]} 35. Qc3# {[%emt 0:00:09]} 1-0

[Event "XII Cracow ICC-B 2024"]
[Site "Krakow"]
[Date "2024.06.27"]
[Round "7.2"]
[White "Botez, Andrea"]
[Black "Skomial, Mateusz"]
[Result "0-1"]
[ECO "D01"]
[WhiteElo "1906"]
[BlackElo "2083"]
[Annotator "RC"]
[PlyCount "100"]
[EventDate "2024.06.20"]
[EventType "swiss"]
[EventCountry "POL"]
[SourceTitle "playchess.com"]
[Source "ChessBase"]
[SourceQuality "1"]
[TimeControl "40/5400+30:1800+30"]

1. d4 {[%emt 0:01:16]} d5 {[%emt 0:02:58]} 2. Nc3 {[%emt 0:00:23]} Nf6 {[%emt 0:00:06]} 3. Bf4 {[%emt 0:00:12]} e6 {[%emt 0:00:14]} 4. Nb5 {[%emt 0:00:37]} Bd6 {[%emt 0:00:27]} 5. Nxd6+ {[%emt 0:01:39]} cxd6 {[%emt 0:01:18]} 6. Nf3 {[%emt 0:00:20]} Nc6 {[%emt 0:01:28]} 7. e3 {[%emt 0:00:11]} O-O {[%emt 0:01:30]} 8. Be2 {[%emt 0:00:45]} Ne4 {[%emt 0:03:04]} 9. Nd2 {[%emt 0:07:31]} e5 {[%emt 0:05:09]} 10. dxe5 {[%emt 0:30:20]} dxe5 {[%emt 0:00:46]} 11. Bg3 {[%emt 0:05:19]} Nxg3 {[%emt 0:04:36]} 12. hxg3 {[%emt 0:01:48]} Be6 {[%emt 0:00:37]} 13. c3 {[%emt 0:07:31]} Qe7 {[%emt 0:04:52]} 14. Qa4 {[%emt 0:02:42]} d4 {[%emt 0:06:01]} 15. cxd4 {[%emt 0:05:38]} exd4 {[%emt 0:00:48]} 16. e4 {[%emt 0:03:43]} d3 {[%emt 0:04:34]} 17. Bd1 {[%emt 0:00:17]} a6 {[%emt 0:10:41]} 18. Qa3 {[%emt 0:03:55]} Qf6 {[%emt 0:03:19]} 19. O-O {[%emt 0:00:42]} Rfd8 {[%emt 0:01:00]} 20. Rc1 {[%emt 0:03:22]} Qh6 {[%emt 0:03:21]} 21. f4 {[%emt 0:01:19]} Qf6 {[%emt 0:09:40]} 22. Qc3 {[%emt 0:01:17]} Qd4+ {[%emt 0:02:11]} 23. Qxd4 {[%emt 0:00:13]} Nxd4 {[%emt 0:00:09]} 24. Rc7 {[%emt 0:02:56]} Bxa2 {[%emt 0:07:05]} 25. b3 {[%emt 0:03:03]} b5 {[%emt 0:07:36]} 26. f5 {[%emt 0:03:08]} f6 {[%emt 0:03:24]} 27. Kf2 {[%emt 0:12:02]} Rac8 {[%emt 0:00:05]} 28. Ra7 {[%emt 0:00:03]} Rc3 {[%emt 0:02:46]} 29. Bh5 {[%emt 0:01:22]} Nxb3 {[%emt 0:02:30]} 30. Bf7+ {[%emt 0:00:09]} Kf8 {[%emt 0:00:10]} 31. Bxb3 {[%emt 0:00:39]} Bxb3 {[%emt 0:00:06]} 32. Rxa6 {[%emt 0:00:33]} Rb8 {[%emt 0:05:58]} 33. Ke3 {[%emt 0:00:47]} Bc2 {[%emt 0:00:12]} 34. Kd4 {[%emt 0:00:46]} Rc7 {[%emt 0:00:17]} 35. Rfa1 {[%emt 0:00:30]} Rd8+ {[%emt 0:01:27]} 36. Ke3 {[%emt 0:00:07]} Rb7 {[%emt 0:02:07]} 37. R1a2 {[%emt 0:00:29]} b4 {[%emt 0:00:31]} 38. Rb2 {[%emt 0:00:12]} b3 {[%emt 0:00:32]} 39. Nc4 {[%emt 0:00:55]} d2 {[%emt 0:02:31]} 40. Nxd2 {[%emt 0:00:08]} Rd3+ {[%emt 0:00:22]} 41. Ke2 {[%emt 0:30:16]} Rxg3 {[%emt 0:30:26]} 42. Ra8+ {[%emt 0:00:00]} Ke7 {[%emt 0:00:00]} 43. Kf2 {[%emt 0:00:00]} Rd3 {[%emt 0:00:00]} 44. Nf3 {[%emt 0:00:00]} Rd1 {[%emt 0:00:00]} 45. Rh8 {[%emt 0:00:00]} Rb1 {[%emt 0:00:00]} 46. Rxb1 {[%emt 0:00:00]} Bxb1 {[%emt 0:00:00]} 47. Rxh7 {[%emt 0:00:00]} Kf7 {[%emt 0:00:00]} 48. Nd2 {[%emt 0:00:00]} Bc2 {[%emt 0:00:00]} 49. Ke3 {[%emt 0:00:07]} b2 {[%emt 0:00:00]} 50. Kf4 {[%emt 0:02:19]} Rd7 {[%emt 0:00:00]} 0-1

[Event "XII Cracow ICC-B 2024"]
[Site "Krakow"]
[Date "2024.06.27"]
[Round "7.3"]
[White "Padalka, Artem"]
[Black "Polak, Michal"]
[Result "1-0"]
[ECO "A05"]
[WhiteElo "2177"]
[BlackElo "1996"]
[Annotator "RC"]
[PlyCount "139"]
[EventDate "2024.06.20"]
[EventType "swiss"]
[EventCountry "POL"]
[SourceTitle "playchess.com"]
[Source "ChessBase"]
[SourceQuality "1"]
[TimeControl "40/5400+30:1800+30"]

1. Nf3 {[%emt 0:03:50]} Nf6 {[%emt 0:00:07]} 2. g3 {[%emt 0:00:10]} e6 {[%emt 0:00:07]} 3. Bg2 {[%emt 0:00:04]} d5 {[%emt 0:00:05]} 4. O-O {[%emt 0:00:09]} Be7 {[%emt 0:00:10]} 5. d3 {[%emt 0:00:07]} O-O {[%emt 0:01:07]} 6. Nbd2 {[%emt 0:00:09]} c5 {[%emt 0:00:37]} 7. e4 {[%emt 0:00:22]} b5 {[%emt 0:05:29]} 8. e5 {[%emt 0:08:38]} Nfd7 {[%emt 0:00:14]} 9. Re1 {[%emt 0:00:13]} Bb7 {[%emt 0:00:42]} 10. h4 {[%emt 0:06:07]} a5 {[%emt 0:03:16]} 11. Nf1 {[%emt 0:00:59]} Nc6 {[%emt 0:06:49]} 12. N1h2 {[%emt 0:01:43]} Re8 {[%emt 0:03:58]} 13. Ng4 {[%emt 0:11:14]} h5 {[%emt 0:03:33]} 14. Ngh2 {[%emt 0:06:55]} Qc7 {[%emt 0:02:24]} 15. Bf4 {[%emt 0:02:15]} Nf8 {[%emt 0:08:21]} 16. g4 {[%emt 0:04:52]} Ng6 {[%emt 0:01:48]} 17. Bg3 {[%emt 0:00:11]} Qd8 {[%emt 0:01:13]} 18. gxh5 {[%emt 0:13:58]} Nxh4 {[%emt 0:00:42]} 19. Bxh4 {[%emt 0:03:14]} Bxh4 {[%emt 0:00:14]} 20. Qd2 {[%emt 0:01:43]} Be7 {[%emt 0:07:54]} 21. Ng4 {[%emt 0:08:43]} Nd4 {[%emt 0:02:52]} 22. Nxd4 {[%emt 0:00:21]} cxd4 {[%emt 0:00:02]} 23. Qf4 {[%emt 0:00:23]} Rc8 {[%emt 0:02:00]} 24. Re2 {[%emt 0:00:01]} Bg5 {[%emt 0:04:43]} 25. Qg3 {[%emt 0:06:38]} Kh7 {[%emt 0:08:11]} 26. f4 {[%emt 0:06:09]} Bh4 {[%emt 0:00:11]} 27. Qh3 {[%emt 0:00:47]} Rh8 {[%emt 0:02:58]} 28. Bf3 {[%emt 0:01:08]} Kg8 {[%emt 0:03:10]} 29. Rh2 {[%emt 0:04:28]} Be7 {[%emt 0:01:50]} 30. h6 {[%emt 0:00:08]} Rh7 {[%emt 0:04:53]} 31. Rf1 {[%emt 0:02:49]} g6 {[%emt 0:01:53]} 32. Qg3 {[%emt 0:01:32]} Kf8 {[%emt 0:00:47]} 33. Kh1 {[%emt 0:01:25]} b4 {[%emt 0:01:46]} 34. Bd1 {[%emt 0:00:20]} Ke8 {[%emt 0:01:26]} 35. Rh3 {[%emt 0:05:06]} Kd7 {[%emt 0:01:16]} 36. Kg2 {[%emt 0:00:16]} Kc6 {[%emt 0:01:15]} 37. Nh2 {[%emt 0:00:25]} Qh8 {[%emt 0:02:44]} 38. Ng4 {[%emt 0:00:26]} Qd8 {[%emt 0:01:50]} 39. Qf2 {[%emt 0:00:20]} Qb6 {[%emt 0:00:21]} 40. Rfh1 {[%emt 0:00:49]} Rch8 {[%emt 0:00:00]} 41. Qg3 {[%emt 0:15:21]} Qc5 {[%emt 0:03:20]} 42. Nf6 {[%emt 0:00:30]} Bxf6 {[%emt 0:02:58]} 43. exf6 {[%emt 0:00:02]} a4 {[%emt 0:00:31]} 44. Qf2 {[%emt 0:09:27]} a3 {[%emt 0:01:30]} 45. b3 {[%emt 0:01:36]} Rg8 {[%emt 0:06:29]} 46. Rh4 {[%emt 0:00:18]} Qc3 {[%emt 0:00:30]} 47. Rg4 {[%emt 0:02:11]} Re8 {[%emt 0:02:11]} 48. f5 {[%emt 0:02:15]} gxf5 {[%emt 0:05:06]} 49. Rg7 {[%emt 0:00:41]} Reh8 {[%emt 0:00:28]} 50. Qf4 {[%emt 0:00:43]} Kb5 {[%emt 0:17:31]} 51. Kg3 {[%emt 0:00:42]} Qc5 {[%emt 0:01:16]} 52. Rh4 {[%emt 0:00:42]} Qc3 {[%emt 0:01:09]} 53. Kf2 {[%emt 0:00:09]} Kc6 {[%emt 0:03:55]} 54. Qg5 {[%emt 0:01:23]} e5 {[%emt 0:01:25]} 55. Be2 {[%emt 0:00:35]} e4 {[%emt 0:03:11]} 56. Rh1 {[%emt 0:00:24]} Qc5 {[%emt 0:02:50]} 57. Rxh7 {[%emt 0:00:52]} Rxh7 {[%emt 0:00:11]} 58. Qxf5 {[%emt 0:00:45]} Rh8 {[%emt 0:00:56]} 59. h7 {[%emt 0:00:11]} Bc8 {[%emt 0:00:30]} 60. Qg5 {[%emt 0:00:30]} Qd6 {[%emt 0:00:58]} 61. Rh4 {[%emt 0:00:27]} e3+ {[%emt 0:00:30]} 62. Kf1 {[%emt 0:00:53]} Qc5 {[%emt 0:00:35]} 63. Qg8 {[%emt 0:00:48]} Qxc2 {[%emt 0:00:27]} 64. Qxh8 {[%emt 0:00:31]} Qc1+ {[%emt 0:00:32]} 65. Kg2 {[%emt 0:00:02]} Bf5 {[%emt 0:00:22]} 66. Qa8+ {[%emt 0:00:27]} Kd6 {[%emt 0:00:11]} 67. h8=Q {[%emt 0:00:13]} Qe1 {[%emt 0:00:17]} 68. Qhd8+ {[%emt 0:00:44]} Bd7 {[%emt 0:00:39]} 69. Qe7+ {[%emt 0:00:06]} Kc7 {[%emt 0:00:05]} 70. Qc5+ {[%emt 0:00:53]} 1-0

[Event "XII Cracow ICC-B 2024"]
[Site "Krakow"]
[Date "2024.06.27"]
[Round "7.4"]
[White "Botez, Alexandra"]
[Black "Wnuk, Piotr"]
[Result "0-1"]
[ECO "A58"]
[WhiteElo "2011"]
[BlackElo "1823"]
[Annotator "RC"]
[PlyCount "98"]
[EventDate "2024.06.20"]
[EventType "swiss"]
[EventCountry "POL"]
[SourceTitle "playchess.com"]
[Source "ChessBase"]
[SourceQuality "1"]
[TimeControl "40/5400+30:1800+30"]

1. d4 {[%emt 0:03:21]} Nf6 {[%emt 0:00:06]} 2. c4 {[%emt 0:00:18]} c5 {[%emt 0:00:04]} 3. d5 {[%emt 0:00:11]} b5 {[%emt 0:00:04]} 4. cxb5 {[%emt 0:00:09]} a6 {[%emt 0:00:05]} 5. bxa6 {[%emt 0:00:08]} g6 {[%emt 0:00:04]} 6. a7 {[%emt 0:00:23]} Rxa7 {[%emt 0:00:06]} 7. Nc3 {[%emt 0:00:33]} Bg7 {[%emt 0:00:14]} 8. e4 {[%emt 0:01:17]} d6 {[%emt 0:05:24]} 9. Nf3 {[%emt 0:00:23]} O-O {[%emt 0:00:07]} 10. Be2 {[%emt 0:00:13]} Qa5 {[%emt 0:01:09]} 11. O-O {[%emt 0:01:03]} Ba6 {[%emt 0:05:02]} 12. Bd2 {[%emt 0:01:52]} Rb7 {[%emt 0:04:25]} 13. Qc2 {[%emt 0:05:56]} Qb4 {[%emt 0:06:41]} 14. Bxa6 {[%emt 0:01:12]} Nxa6 {[%emt 0:00:06]} 15. Rab1 {[%emt 0:00:45]} Nc7 {[%emt 0:06:48]} 16. Rfe1 {[%emt 0:02:18]} Ra8 {[%emt 0:01:37]} 17. b3 {[%emt 0:01:35]} Nd7 {[%emt 0:10:37]} 18. Na4 {[%emt 0:07:53]} Qa3 {[%emt 0:02:07]} 19. Bg5 {[%emt 0:04:27]} Kf8 {[%emt 0:06:03]} 20. Nd2 {[%emt 0:02:26]} Qb4 {[%emt 0:11:38]} 21. Nc4 {[%emt 0:00:57]} Rba7 {[%emt 0:13:39]} 22. Bd2 {[%emt 0:01:15]} Qb7 {[%emt 0:00:51]} 23. Bc3 {[%emt 0:00:08]} Nb5 {[%emt 0:01:18]} 24. Bxg7+ {[%emt 0:00:56]} Kxg7 {[%emt 0:00:05]} 25. f4 {[%emt 0:00:36]} f6 {[%emt 0:02:55]} 26. g3 {[%emt 0:06:01]} Nd4 {[%emt 0:01:00]} 27. Qg2 {[%emt 0:00:17]} Rf8 {[%emt 0:05:39]} 28. Kh1 {[%emt 0:01:39]} Qb4 {[%emt 0:03:03]} 29. Rbd1 {[%emt 0:03:16]} Rxa4 {[%emt 0:01:46]} 30. bxa4 {[%emt 0:00:28]} Qxc4 {[%emt 0:00:11]} 31. Rb1 {[%emt 0:01:13]} Qxa4 {[%emt 0:00:57]} 32. Rf1 {[%emt 0:26:13]} Ra8 {[%emt 0:04:47]} 33. Qf2 {[%emt 0:03:13]} Ra7 {[%emt 0:01:40]} 34. Rb2 {[%emt 0:02:01]} Qc4 {[%emt 0:01:37]} 35. Re1 {[%emt 0:09:11]} f5 {[%emt 0:01:01]} 36. exf5 {[%emt 0:00:58]} Qxd5+ {[%emt 0:00:21]} 37. Qg2 {[%emt 0:00:23]} Nf6 {[%emt 0:00:21]} 38. fxg6 {[%emt 0:00:32]} hxg6 {[%emt 0:00:13]} 39. a4 {[%emt 0:05:34]} Qxg2+ {[%emt 0:00:22]} 40. Kxg2 {[%emt 0:00:07]} Nd5 {[%emt 0:00:29]} 41. Ra1 {[%emt 0:30:20]} Ra5 {[%emt 0:31:29]} 42. Ra3 {[%emt 0:00:00]} c4 {[%emt 0:00:00]} 43. Rd2 {[%emt 0:00:00]} e5 {[%emt 0:00:00]} 44. fxe5 {[%emt 0:00:00]} dxe5 {[%emt 0:00:00]} 45. Rf2 {[%emt 0:00:00]} c3 {[%emt 0:00:00]} 46. Ra1 {[%emt 0:00:00]} c2 {[%emt 0:00:00]} 47. Kh3 {[%emt 0:00:00]} Nb3 {[%emt 0:00:00]} 48. Raf1 {[%emt 0:00:00]} c1=Q {[%emt 0:00:00]} 49. Rf7+ {[%emt 0:00:00]} Kh6 {[%emt 0:00:00]} 0-1

[Event "XII Cracow ICC-B 2024"]
[Site "Krakow"]
[Date "2024.06.27"]
[Round "7.5"]
[White "Brzezina, Pawel"]
[Black "Kaim, Piotr"]
[Result "0-1"]
[ECO "D26"]
[WhiteElo "1955"]
[BlackElo "2094"]
[Annotator "NA RC"]
[PlyCount "72"]
[EventDate "2024.06.20"]
[EventType "swiss"]
[EventCountry "POL"]
[SourceTitle "playchess.com"]
[Source "ChessBase"]
[SourceQuality "1"]
[TimeControl "40/5400+30:1800+30"]

1. d4 {[%emt 0:00:18]} d5 {[%emt 0:00:39]} 2. c4 {[%emt 0:00:36]} dxc4 {[%emt 0:00:16]} 3. Nf3 {[%emt 0:00:20]} Nf6 {[%emt 0:00:15]} 4. e3 {[%emt 0:01:15]} e6 {[%emt 0:00:23]} 5. Bxc4 {[%emt 0:00:30]} Be7 {[%emt 0:00:17]} 6. O-O {[%emt 0:00:40]} O-O {[%emt 0:00:11]} 7. Nc3 {[%emt 0:00:29]} c5 {[%emt 0:00:31]} 8. dxc5 {[%emt 0:04:59]} Bxc5 {[%emt 0:01:23]} 9. b3 {[%emt 0:01:14]} b6 {[%emt 0:05:45]} 10. Bb2 {[%emt 0:03:24]} Bb7 {[%emt 0:00:21]} 11. Qe2 {[%emt 0:00:40]} Nbd7 {[%emt 0:00:52]} 12. Rfd1 {[%emt 0:01:40]} Qe7 {[%emt 0:02:09]} 13. a3 {[%emt 0:06:58]} a6 {[%emt 0:06:27]} 14. b4 {[%emt 0:13:38]} Bd6 {[%emt 0:02:38]} 15. Bb3 {[%emt 0:02:21]} Rac8 {[%emt 0:12:16]} 16. e4 {[%emt 0:13:08]} Ne5 {[%emt 0:14:59]} 17. Nd4 {[%emt 0:05:26]} Bb8 {[%emt 0:03:54]} 18. Na4 {[%emt 0:13:29]} Nxe4 {[%emt 0:15:53]} 19. Nxb6 {[%emt 0:02:56]} Nc3 {[%emt 0:03:31]} 20. Qd2 {[%emt 0:04:19]} Nxd1 {[%emt 0:01:52]} 21. Nxc8 {[%emt 0:00:08]} Rxc8 {[%emt 0:00:39]} 22. Rxd1 {[%emt 0:00:26]} Qh4 {[%emt 0:04:43]} 23. h3 {[%emt 0:10:03]} Qe4 {[%emt 0:03:09]} 24. f3 {[%emt 0:02:12]} Qg6 {[%emt 0:00:26]} 25. Bc2 {[%emt 0:01:26]} Qg3 {[%emt 0:03:41]} 26. Qe1 {[%emt 0:05:05]} Qxe1+ {[%emt 0:05:02]} 27. Rxe1 {[%emt 0:00:08]} Ba7 {[%emt 0:00:43]} 28. Kh1 {[%emt 0:03:43]} Bxd4 {[%emt 0:03:56]} 29. Bxd4 {[%emt 0:00:11]} Nxf3 {[%emt 0:00:18]} 30. Bxh7+ {[%emt 0:00:19]} Kxh7 {[%emt 0:00:24]} 31. gxf3 {[%emt 0:00:05]} Bxf3+ {[%emt 0:01:12]} 32. Kh2 {[%emt 0:00:09]} Rc4 {[%emt 0:01:13]} 33. Bc5 {[%emt 0:02:07]} g5 {[%emt 0:00:45]} 34. Kg3 {[%emt 0:01:21]} Bc6 {[%emt 0:00:15]} 35. Re3 {[%emt 0:01:27]} Rc2 {[%emt 0:00:31]} 36. Kg4 {[%emt 0:00:38]} Kg6 {[%emt 0:00:55]} 0-1

[Event "XII Cracow ICC-B 2024"]
[Site "Krakow"]
[Date "2024.06.27"]
[Round "7.6"]
[White "Zieba, Hubert"]
[Black "Pietrzak, Tomasz"]
[Result "1/2-1/2"]
[ECO "A40"]
[WhiteElo "2012"]
[BlackElo "1918"]
[Annotator "RC"]
[PlyCount "116"]
[EventDate "2024.06.20"]
[EventType "swiss"]
[EventCountry "POL"]
[SourceTitle "playchess.com"]
[Source "ChessBase"]
[SourceQuality "1"]
[TimeControl "40/5400+30:1800+30"]

1. d4 {[%emt 0:00:03]} e6 {[%emt 0:15:15]} 2. c4 {[%emt 0:00:09]} Bb4+ {[%emt 0:01:32]} 3. Bd2 {[%emt 0:00:27]} a5 {[%emt 0:01:35]} 4. Nf3 {[%emt 0:00:15]} d5 {[%emt 0:01:02]} 5. g3 {[%emt 0:14:12]} dxc4 {[%emt 0:00:38]} 6. Bg2 {[%emt 0:00:05]} Nc6 {[%emt 0:05:56]} 7. e3 {[%emt 0:01:32]} Nge7 {[%emt 0:01:10]} 8. O-O {[%emt 0:02:35]} O-O {[%emt 0:08:39]} 9. a3 {[%emt 0:02:23]} Bd6 {[%emt 0:00:42]} 10. Qc2 {[%emt 0:05:55]} e5 {[%emt 0:02:58]} 11. dxe5 {[%emt 0:03:15]} Nxe5 {[%emt 0:00:26]} 12. Nxe5 {[%emt 0:00:10]} Bxe5 {[%emt 0:00:08]} 13. Bc3 {[%emt 0:01:29]} Bxc3 {[%emt 0:08:18]} 14. Qxc3 {[%emt 0:07:09]} Qd3 {[%emt 0:12:02]} 15. Nd2 {[%emt 0:00:25]} Be6 {[%emt 0:17:44]} 16. Rfc1 {[%emt 0:01:04]} Qxc3 {[%emt 0:04:10]} 17. Rxc3 {[%emt 0:00:09]} c6 {[%emt 0:00:06]} 18. Nxc4 {[%emt 0:00:35]} Rfd8 {[%emt 0:00:44]} 19. Nb6 {[%emt 0:02:26]} Ra6 {[%emt 0:03:22]} 20. Na4 {[%emt 0:00:21]} Rd2 {[%emt 0:01:05]} 21. Bf1 {[%emt 0:04:41]} b5 {[%emt 0:01:29]} 22. Nc5 {[%emt 0:00:53]} Rb6 {[%emt 0:00:04]} 23. Rd3 {[%emt 0:01:47]} Rxd3 {[%emt 0:00:36]} 24. Bxd3 {[%emt 0:00:05]} g6 {[%emt 0:04:11]} 25. e4 {[%emt 0:02:39]} a4 {[%emt 0:01:34]} 26. f3 {[%emt 0:01:17]} Nc8 {[%emt 0:02:11]} 27. Kf2 {[%emt 0:00:56]} Nd6 {[%emt 0:00:19]} 28. Rc1 {[%emt 0:01:37]} Kf8 {[%emt 0:00:15]} 29. e5 {[%emt 0:02:00]} Nf5 {[%emt 0:01:37]} 30. Nxe6+ {[%emt 0:01:48]} fxe6 {[%emt 0:00:04]} 31. Bxf5 {[%emt 0:00:03]} gxf5 {[%emt 0:00:07]} 32. Ke3 {[%emt 0:00:27]} Ke7 {[%emt 0:00:02]} 33. Kd4 {[%emt 0:00:53]} b4 {[%emt 0:00:03]} 34. Rc4 {[%emt 0:02:32]} bxa3 {[%emt 0:00:27]} 35. bxa3 {[%emt 0:00:08]} Ra6 {[%emt 0:01:13]} 36. Rb4 {[%emt 0:00:37]} Ra7 {[%emt 0:00:37]} 37. Kc5 {[%emt 0:01:32]} Ra5+ {[%emt 0:00:35]} 38. Kxc6 {[%emt 0:00:07]} Rxe5 {[%emt 0:00:04]} 39. Rxa4 {[%emt 0:00:07]} Re3 {[%emt 0:00:37]} 40. Ra7+ {[%emt 0:03:27]} Kf6 {[%emt 0:00:02]} 41. f4 {[%emt 0:31:40]} h5 {[%emt 0:31:23]} 42. a4 {[%emt 0:00:33]} h4 {[%emt 0:00:00]} 43. gxh4 {[%emt 0:00:00]} Re4 {[%emt 0:00:00]} 44. a5 {[%emt 0:00:00]} Rxf4 {[%emt 0:00:00]} 45. a6 {[%emt 0:00:00]} Rxh4 {[%emt 0:00:00]} 46. Ra8 {[%emt 0:00:00]} Rxh2 {[%emt 0:00:00]} 47. a7 {[%emt 0:00:00]} Ra2 {[%emt 0:00:00]} 48. Rf8+ {[%emt 0:00:00]} Ke5 {[%emt 0:00:00]} 49. a8=Q {[%emt 0:00:00]} Rxa8 {[%emt 0:00:00]} 50. Rxa8 {[%emt 0:00:00]} f4 {[%emt 0:00:00]} 51. Kc5 {[%emt 0:00:00]} f3 {[%emt 0:00:00]} 52. Re8 {[%emt 0:00:00]} Ke4 {[%emt 0:01:26]} 53. Rxe6+ {[%emt 0:00:00]} Kd3 {[%emt 0:00:03]} 54. Rd6+ {[%emt 0:00:00]} Ke2 {[%emt 0:00:17]} 55. Re6+ {[%emt 0:00:00]} Kd3 {[%emt 0:00:26]} 56. Rf6 {[%emt 0:00:00]} Ke2 {[%emt 0:00:05]} 57. Kd4 {[%emt 0:00:00]} f2 {[%emt 0:00:03]} 58. Re6+ {[%emt 0:00:00]} Kd2 {[%emt 0:00:20]} 1/2-1/2

[Event "XII Cracow ICC-B 2024"]
[Site "Krakow"]
[Date "2024.06.27"]
[Round "7.7"]
[White "Mytych, Rafal"]
[Black "Marciniak, Leonard"]
[Result "1-0"]
[ECO "A07"]
[WhiteElo "1878"]
[BlackElo "1937"]
[Annotator "NA RC"]
[PlyCount "68"]
[EventDate "2024.06.20"]
[EventType "swiss"]
[EventCountry "POL"]
[SourceTitle "playchess.com"]
[Source "ChessBase"]
[SourceQuality "1"]
[TimeControl "40/5400+30:1800+30"]

1. Nf3 {[%emt 0:00:15]} d5 {[%emt 0:01:05]} 2. g3 {[%emt 0:00:02]} Nd7 {[%emt 0:00:07]} 3. Bg2 {[%emt 0:00:12]} e5 {[%emt 0:00:33]} 4. d3 {[%emt 0:00:26]} Ngf6 {[%emt 0:00:11]} 5. O-O {[%emt 0:00:02]} Bd6 {[%emt 0:00:21]} 6. e4 {[%emt 0:06:47]} c6 {[%emt 0:04:29]} 7. Nc3 {[%emt 0:03:05]} O-O {[%emt 0:01:55]} 8. Nh4 {[%emt 0:10:19]} Nb6 {[%emt 0:04:26]} 9. Bg5 {[%emt 0:08:24]} d4 {[%emt 0:08:42]} 10. Ne2 {[%emt 0:01:39]} h6 {[%emt 0:01:07]} 11. Bd2 {[%emt 0:09:14]} Ne8 {[%emt 0:15:48]} 12. Qe1 {[%emt 0:06:14]} Be7 {[%emt 0:02:20]} 13. a4 {[%emt 0:04:54]} Nd6 {[%emt 0:05:18]} 14. a5 {[%emt 0:04:15]} Nd7 {[%emt 0:00:12]} 15. f4 {[%emt 0:02:43]} c5 {[%emt 0:10:32]} 16. Nf5 {[%emt 0:02:07]} Nxf5 {[%emt 0:01:25]} 17. exf5 {[%emt 0:00:25]} Bd6 {[%emt 0:04:40]} 18. g4 {[%emt 0:05:43]} exf4 {[%emt 0:01:20]} 19. Nxf4 {[%emt 0:02:06]} Nf6 {[%emt 0:02:19]} 20. Qh4 {[%emt 0:09:10]} Nh7 {[%emt 0:07:25]} 21. Qh5 {[%emt 0:01:27]} Nf6 {[%emt 0:00:30]} 22. Qh3 {[%emt 0:00:34]} Rb8 {[%emt 0:03:00]} 23. Nd5 {[%emt 0:04:52]} Nxd5 {[%emt 0:03:31]} 24. Bxd5 {[%emt 0:00:03]} Qf6 {[%emt 0:02:12]} 25. Rae1 {[%emt 0:03:02]} Bd7 {[%emt 0:05:00]} 26. Qh5 {[%emt 0:03:15]} Be7 {[%emt 0:02:27]} 27. Rxe7 {[%emt 0:02:19]} Qxe7 {[%emt 0:00:02]} 28. f6 {[%emt 0:01:07]} Qe2 {[%emt 0:02:00]} 29. fxg7 {[%emt 0:02:55]} Qxd2 {[%emt 0:00:56]} 30. gxf8=Q+ {[%emt 0:02:13]} Rxf8 {[%emt 0:00:18]} 31. Bxf7+ {[%emt 0:03:01]} Kg7 {[%emt 0:00:58]} 32. Qg6+ {[%emt 0:00:29]} Kh8 {[%emt 0:00:06]} 33. Qf6+ {[%emt 0:00:04]} Kh7 {[%emt 0:00:07]} 34. Bg6+ {[%emt 0:00:05]} Kg8 {[%emt 0:00:13]} 1-0